bitfinex/quotes_ETHUSD_20251006
["timestamp","ask_amount","ask_price","bid_price","bid_amount"]
[1759790237909,8.92334406,4690.7,4690.6,0.001]
[1759790238413,6.52034406,4690.7,4690.6,0.001]
[1759790238584,9.02974406,4690.7,4690.6,0.001]
[1759790239214,6.62674406,4690.7,4690.6,0.001]
[1759790239397,5.3292802,4690.7,4690.6,0.001]
[1759790239712,8.3658802,4690.7,4690.6,0.001]
[1759790240009,7.50947797,4690.7,4690.6,0.001]
[1759790243512,5.3776,4690.7,4690.6,0.001]
[1759790243716,7.50947797,4690.7,4690.6,0.001]
[1759790246102,5.10647797,4690.7,4690.6,0.001]
[1759790246308,7.50947797,4690.7,4690.6,0.001]
[1759790246601,7.97507797,4690.7,4690.6,0.001]
[1759790246802,7.50947797,4690.7,4690.6,0.001]
[1759790246991,2.9746,4690.7,4690.6,0.001]
[1759790247193,5.3776,4690.7,4690.6,0.001]
[1759790247381,2.8682,4690.7,4690.6,0.001]
[1759790247580,5.2712,4690.7,4690.6,0.001]
[1759790255323,5.2712,4690.7,4690.6,2.13292342]
[1759790255324,2.2346,4690.7,4690.6,2.13292342]
[1759790255624,4.6376,4690.7,4690.6,2.67656102]
[1759790258345,4.6376,4690.7,4690.6,0.5446376]
[1759790258513,4.6376,4690.7,4690.6,0.1074]
[1759790259030,5.0696,4690.7,4690.6,0.1074]
[1759790259603,4.6376,4690.7,4690.6,0.1074]
[1759790260844,5.7032,4690.7,4690.6,0.1074]
[1759790261048,7.83507797,4690.7,4690.6,0.001]
[1759790262345,8.8426047,4690.7,4690.6,0.001]
[1759790262521,9.14813573,4690.7,4690.6,0.001]
[1759790267628,13.81070624,4690.7,4690.6,0.001]
[1759790279235,13.89603529,4690.7,4690.6,0.001]
[1759790280678,2.76584162,4689.9,4689.6,0.001]
[1759790280844,5.16888709,4689.8,4689.6,0.001]
[1759790281046,5.27528709,4689.8,4689.6,0.001]
[1759790281782,3.143,4689.8,4689.6,0.001]
[1759790282078,5.27528709,4689.8,4689.6,0.001]
[1759790282268,5.81174709,4689.8,4689.6,0.001]
[1759790282439,6.24374709,4689.8,4689.6,0.001]
[1759790283294,5.81174709,4689.8,4689.6,0.001]
[1759790283461,6.26224709,4689.8,4689.6,0.001]
[1759790284391,5.81174709,4689.8,4689.6,0.001]
[1759790284555,6.26224709,4689.8,4689.6,0.001]
[1759790285375,5.81174709,4689.8,4689.6,0.001]
[1759790286591,8.02334709,4689.8,4689.6,0.001]
[1759790290059,8.47384709,4689.8,4689.6,0.001]
[1759790290383,8.67316633,4689.8,4689.6,0.001]
[1759790290699,8.67317055,4689.8,4689.6,0.001]
[1759790293202,8.22267055,4689.8,4689.6,0.001]
[1759790293401,8.22286036,4689.8,4689.6,0.001]
[1759790293604,7.68640036,4689.8,4689.6,0.001]
[1759790294685,5.28340036,4689.8,4689.6,0.001]
[1759790295013,7.68640036,4689.8,4689.6,0.001]
[1759790296486,8.13690036,4689.8,4689.6,0.001]
[1759790297295,5.47480036,4689.8,4689.6,0.001]
[1759790297512,5.92530036,4689.8,4689.6,0.001]
[1759790297715,7.1130978,4689.8,4689.6,0.001]
[1759790299729,4.7100978,4689.8,4689.6,0.001]
[1759790299933,6.6625978,4689.8,4689.6,0.001]
[1759790300113,5.47499767,4689.8,4689.6,0.001]
[1759790304305,5.92549767,4689.8,4689.6,0.001]
[1759790306603,6.3857826,4689.8,4689.6,0.001]
[1759790306804,6.47112276,4689.8,4689.6,0.001]
[1759790307009,8.09515523,4689.8,4689.6,0.001]
[1759790310235,8.09496568,4689.8,4689.6,0.001]
[1759790312030,7.63468075,4689.8,4689.6,0.001]
[1759790312340,8.09424138,4689.8,4689.6,0.001]
[1759790313141,8.09524138,4689.8,4689.6,0.001]
[1759790313342,5.69124138,4689.8,4689.6,0.001]
[1759790313647,10.30684138,4689.8,4689.6,0.001]
[1759790313824,17.42684138,4689.8,4689.6,0.001]
[1759790314727,19.82684138,4689.8,4689.6,0.001]
[1759790315109,22.07084138,4689.8,4689.6,0.001]
[1759790315609,23.34984138,4689.8,4689.6,0.001]
[1759790315827,22.07084138,4689.8,4689.6,0.001]
[1759790316916,22.07084138,4689.8,4689.1,1e-08]
[1759790316917,2.8776,4689.7,4689.1,1e-08]
[1759790317213,2.8776,4689.7,4688.1,1e-08]
[1759790317214,2.7666148,4688.2,4688.1,1e-08]
[1759790317523,11.59663688,4688.2,4688.1,1e-08]
[1759790317840,5.16706987,4687.2,4686.1,0.01]
[1759790318145,12.32713894,4687.2,4686.1,0.01]
[1759790318350,16.57853999,4687.2,4686.1,0.01]
[1759790318553,12.96758093,4687.2,4686.1,0.01]
[1759790318749,13.40048093,4687.2,4686.1,0.01]
[1759790319054,17.21898198,4687.2,4686.1,0.01]
[1759790319256,13.40048093,4687.2,4686.1,0.01]
[1759790319751,13.39969169,4687.2,4686.1,0.01]
[1759790320048,13.39969175,4687.2,4686.1,0.01]
[1759790320535,10.98769175,4687.2,4686.1,0.01]
[1759790320848,12.96679175,4687.2,4686.1,0.01]
[1759790321151,13.39969175,4687.2,4686.1,0.01]
[1759790322917,17.2181928,4687.2,4687.1,1e-08]
[1759790324252,14.8061928,4687.2,4687.1,1e-08]
[1759790324426,17.02346095,4687.2,4687.1,1e-08]
[1759790324622,17.22160632,4687.2,4687.1,1e-08]
[1759790326859,17.22160632,4687.2,4687.1,0.00100001]
[1759790327025,17.32800632,4687.2,4687.1,0.00100001]
[1759790328730,17.32782491,4687.2,4687.1,0.00100001]
[1759790331154,11.09332386,4687.2,4687.1,0.00100001]
[1759790331367,12.44282386,4687.2,4687.1,0.00100001]
[1759790331573,11.71277687,4687.2,4687.1,0.00100001]
[1759790331974,12.34637687,4687.2,4687.1,0.00100001]
[1759790333475,12.34647626,4687.2,4687.1,0.00100001]
[1759790334999,7.53047626,4687.2,4687.1,0.00100001]
[1759790335277,9.94647626,4687.2,4687.1,0.00100001]
[1759790335449,11.15446388,4687.2,4687.1,0.00100001]
[1759790340368,15.40586493,4687.2,4687.1,0.00100001]
[1759790340890,15.86333803,4687.2,4687.1,0.00100001]
[1759790341282,15.40586493,4687.2,4687.1,0.00100001]
[1759790341472,15.86350418,4687.2,4687.1,0.00100001]
[1759790341658,15.75774037,4687.2,4687.1,0.00100001]
[1759790343282,18.15774037,4687.2,4687.1,0.00100001]
[1759790344395,18.15774037,4687.2,4686.6,0.001]
[1759790344396,2.76729748,4686.7,4686.6,0.001]
[1759790344570,9.19949807,4686.7,4686.6,0.001]
[1759790344770,10.33281109,4686.7,4686.6,0.001]
[1759790344970,10.41820809,4686.7,4686.6,0.001]
[1759790345198,10.87711559,4686.7,4686.6,0.001]
[1759790345366,7.05861454,4686.7,4686.6,0.001]
[1759790345692,10.87711559,4686.7,4686.6,0.001]
[1759790347395,11.44916465,4686.7,4686.6,0.001]
[1759790348467,11.88196465,4686.7,4686.6,0.001]
[1759790349096,4.97812514,4686.2,4686.1,0.01]
[1759790349401,8.05073218,4686.2,4686.1,0.01]
[1759790350595,9.45104157,4686.2,4686.1,0.01]
[1759790350964,7.85203264,4686.2,4686.1,0.01]
[1759790351160,8.05175634,4686.2,4686.1,0.01]
[1759790351694,8.15815634,4686.2,4686.1,0.01]
[1759790353178,8.15815581,4686.2,4686.1,0.01]
[1759790357216,5.17784831,4686.2,4686.1,0.01]
[1759790357387,2.41032317,4686.2,4686.1,0.01]
[1759790357716,7.59284831,4686.2,4686.1,0.01]
[1759790358413,5.45892317,4686.2,4686.1,0.01]
[1759790358592,7.59284831,4686.2,4686.1,0.01]
[1759790358979,5.17784831,4686.2,4686.1,0.01]
[1759790359398,7.59184831,4686.2,4686.1,0.01]
[1759790362301,5.45792317,4686.2,4686.1,0.01]
[1759790364388,3.04392317,4686.2,4686.1,0.011]
[1759790364611,5.45892317,4686.2,4686.1,0.011]
[1759790365033,3.04392317,4686.2,4686.1,0.011]
[1759790365210,5.45892317,4686.2,4686.1,0.011]
[1759790365400,3.24832317,4686.2,4686.1,0.011]
[1759790365926,5.38224831,4686.2,4686.1,0.011]
[1759790367303,5.48864831,4686.2,4686.1,0.011]
[1759790371328,3.35472317,4686.2,4686.1,0.011]
[1759790371701,5.48864831,4686.2,4686.1,0.011]
[1759790373007,5.92144831,4686.2,4686.1,0.011]
[1759790375001,5.92151102,4686.2,4686.1,0.011]
[1759790375207,5.95161102,4686.2,4686.1,0.011]
[1759790375430,5.48871102,4686.2,4686.1,0.011]
[1759790376309,5.94841102,4686.2,4686.1,0.011]
[1759790377339,6.75663575,4686.2,4686.1,0.011]
[1759790377936,7.21699765,4686.2,4686.1,0.011]
[1759790378333,6.75663575,4686.2,4686.1,0.011]
[1759790380234,6.55684987,4686.2,4686.1,0.011]
[1759790382238,6.75661555,4686.2,4686.1,0.011]
[1759790382432,6.55684987,4686.2,4686.1,0.011]
[1759790382739,0.6336,4685.9,4685.1,0.01]
[1759790382926,0.6336,4685.2,4685.1,0.01]
[1759790383132,3.0486,4685.2,4685.1,0.01]
[1759790385160,3.0486,4685.2,4685.1,0.011]
[1759790387568,5.2382,4685.2,4685.1,0.1174]
[1759790387956,5.2382,4685.2,4685.1,2.25182615]
[1759790388159,2.8232,4685.2,4685.1,2.25182615]
[1759790388328,5.2382,4685.2,4685.1,2.25182615]
[1759790389351,5.2382,4685.2,4685.1,0.1174]
[1759790389551,5.2382,4685.2,4685.1,0.011]
[1759790395329,2.8232,4685.2,4685.1,0.011]
[1759790395633,5.2372,4685.2,4685.1,0.011]
[1759790397662,5.6969,4685.2,4685.1,0.011]
[1759790399966,7.8312806,4685.2,4685.1,0.011]
[1759790400179,6.43544866,4685.2,4685.1,0.011]
[1759790400379,6.74161195,4685.2,4685.1,0.011]
[1759790400557,6.74163509,4685.2,4685.1,0.011]
[1759790400980,6.7416391,4685.2,4685.1,0.011]
[1759790401162,6.54184866,4685.2,4685.1,0.011]
[1759790401961,3.94876806,4685.2,4685.1,0.011]
[1759790402182,6.08314866,4685.2,4685.1,0.011]
[1759790402348,6.54284866,4685.2,4685.1,0.011]
[1759790404178,4.40846806,4685.2,4685.1,0.011]
[1759790404472,6.74263391,4685.2,4685.1,0.011]
[1759790412900,4.60825331,4685.2,4685.1,0.011]
[1759790413200,6.74263391,4685.2,4685.1,0.011]
[1759790414165,3.86793391,4685.2,4685.1,0.011]
[1759790414366,6.28593391,4685.2,4685.1,0.011]
[1759790414577,6.74823391,4685.2,4685.1,0.011]
[1759790414882,6.28593391,4685.2,4685.1,0.011]
[1759790415084,8.93783391,4685.2,4685.1,0.011]
[1759790416096,6.51983391,4685.2,4685.1,0.011]
[1759790416402,8.47453391,4685.2,4685.1,0.011]
[1759790417286,6.05753391,4685.2,4685.1,0.011]
[1759790417625,8.47453391,4685.2,4685.1,0.011]
[1759790419110,6.05753391,4685.2,4685.1,0.011]
[1759790419292,8.47453391,4685.2,4685.1,0.011]
[1759790420211,8.47437782,4685.2,4685.1,0.011]
[1759790423114,6.05737782,4685.2,4685.1,0.011]
[1759790423289,8.47437782,4685.2,4685.1,0.011]
[1759790424007,6.28477782,4685.2,4685.1,0.011]
[1759790424210,0.93962916,4685.2,4685.1,0.011]
[1759790424385,3.35562916,4685.2,4685.1,0.011]
[1759790424586,2.61562916,4685.2,4685.1,0.011]
[1759790424785,3.07792916,4685.2,4685.1,0.011]
[1759790425018,3.24922916,4685.2,4685.1,0.011]
[1759790425317,5.38360976,4685.2,4685.1,0.011]
[1759790426216,6.65456972,4685.2,4685.1,0.011]
[1759790426415,6.76096972,4685.2,4685.1,0.011]
[1759790428419,6.86736972,4685.2,4685.1,0.011]
[1759790429009,7.32782434,4685.2,4685.1,0.011]
[1759790429627,7.3280417,4685.2,4685.1,0.011]
[1759790429828,9.7280417,4685.2,4685.1,0.011]
[1759790431214,9.7300417,4685.2,4685.1,0.011]
[1759790431935,9.7300417,4685.2,4685.1,1.011]
[1759790432331,9.7300417,4685.2,4685.1,1e-08]
[1759790433203,2.76843625,4684.2,4684.1,0.01]
[1759790433429,8.27760329,4684.2,4684.1,0.01]
[1759790433604,8.71620329,4684.2,4684.1,0.01]
[1759790435927,2.59984652,4684.2,4684.1,0.01]
[1759790436126,2.61884652,4684.2,4684.1,0.01]
[1759790436335,2.419,4684.2,4684.1,0.01]
[1759790436543,4.55383625,4684.2,4684.1,0.01]
[1759790436744,2.419,4684.2,4684.1,0.01]
[1759790436910,3.0526,4684.2,4684.1,0.01]
[1759790437545,5.69216596,4684.2,4684.1,0.01]
[1759790438248,5.69216596,4684.2,4684.1,0.011]
[1759790439643,5.18743625,4684.2,4684.1,0.011]
[1759790440185,2.96786264,4684.2,4684.1,0.011]
[1759790440327,5.38686264,4684.2,4684.1,0.011]
[1759790441348,5.84916264,4684.2,4684.1,0.011]
[1759790442233,5.84916264,4684.2,4684.1,1.011]
[1759790442440,9.1116287,4684.2,4684.1,1.011]
[1759790442753,9.75244279,4684.2,4684.1,1.011]
[1759790443113,9.85884279,4684.2,4684.1,1.011]
[1759790445567,9.85784279,4684.2,4684.1,1.011]
[1759790445880,9.6584164,4684.2,4684.1,1.011]
[1759790446590,6.9774301,4684.2,4684.1,1.011]
[1759790446761,2.87483625,4684.2,4684.1,1.011]
[1759790446966,5.29283625,4684.2,4684.1,1.011]
[1759790447951,5.49213671,4684.2,4684.1,1.011]
[1759790448488,5.95444001,4684.2,4684.1,1.011]
[1759790453489,5.49214001,4684.2,4684.1,1.011]
[1759790454195,5.95444001,4684.2,4684.1,1.011]
[1759790454404,4.18713627,4684.2,4684.1,1.011]
[1759790454621,5.49114001,4684.2,4684.1,1.011]
[1759790455761,5.95344001,4684.2,4684.1,1.011]
[1759790457004,5.49114001,4684.2,4684.1,1.011]
[1759790457603,0.93930376,4684.2,4684.1,1.011]
[1759790457766,5.49114001,4684.2,4684.1,1.011]
[1759790457971,3.07414001,4684.2,4684.1,1.011]
[1759790458170,5.49114001,4684.2,4684.1,1.011]
[1759790458566,0.83290376,4684.2,4684.1,1.011]
[1759790458903,0.1064,4684.7,4684.1,1.1174]
[1759790459110,0.6336,4684.5,4684.1,1.1174]
[1759790459421,2.417,4684.4,4684.1,1.12274]
[1759790459611,2.417,4684.3,4684.1,1.12274]
[1759790459796,2.417,4684.2,4684.1,1.12274]
[1759790460294,3.0506,4684.2,4684.1,1.011]
[1759790461813,2.76843625,4684.2,4684.1,1.011]
[1759790462015,5.18443625,4684.2,4684.1,1.011]
[1759790462796,5.64673625,4684.2,4684.1,1.011]
[1759790463001,5.84640386,4684.2,4684.1,1.011]
[1759790463198,6.64451883,4684.2,4684.1,1.011]
[1759790469429,6.75091883,4684.2,4684.1,1.011]
[1759790469797,10.57635954,4684.2,4684.1,1.011]
[1759790469997,14.07734635,4684.2,4684.1,1.011]
[1759790470196,13.61722291,4684.2,4684.1,1.011]
[1759790470420,2.7688921,4683.2,4681.3,2.1361325]
[1759790470622,7.78455971,4683.2,4681.7,0.4362]
[1759790470824,8.25715971,4683.2,4681.7,0.4362]
[1759790471201,8.69335971,4683.2,4681.7,0.4362]
[1759790471740,8.69335971,4683.2,4682.0,0.4362]
[1759790472345,8.69335971,4683.2,4681.6,0.4362]
[1759790472346,8.69329349,4683.2,4681.6,0.4362]
[1759790472501,9.81980589,4683.2,4681.6,0.4362]
[1759790474325,7.40380589,4683.2,4681.6,0.4362]
[1759790474518,7.40380589,4683.2,4681.1,0.01]
[1759790474721,0.63580139,4683.2,4682.5,0.4362]
[1759790474921,2.60744898,4684.2,4683.1,0.4462]
[1759790474922,0.4726,4684.2,4683.1,0.4462]
[1759790475242,0.6336,4683.5,4683.1,0.4472]
[1759790475434,2.417,4683.4,4683.1,0.011]
[1759790475619,2.417,4683.3,4683.2,0.4362]
[1759790475824,0.08544023,4684.0,4683.2,0.4362]
[1759790476020,2.13502328,4683.8,4683.2,0.4362]
[1759790476208,0.6336,4683.5,4683.2,0.4362]
[1759790476530,2.417,4683.4,4683.1,0.011]
[1759790476744,0.6336,4683.5,4683.3,0.4362]
[1759790476951,2.417,4683.4,4683.3,0.4362]
[1759790477935,0.6336,4683.3,4683.1,0.011]
[1759790478116,3.0506,4683.2,4683.1,0.4472]
[1759790481847,0.6336,4683.2,4683.1,0.4472]
[1759790482020,3.0506,4683.2,4683.1,2.85143667]
[1759790482349,3.0506,4683.2,4683.1,2.6889377]
[1759790483120,2.417,4683.2,4683.1,2.6889377]
[1759790484946,2.417,4683.2,4683.1,2.2527377]
[1759790485145,2.417,4683.2,4683.1,2.73517197]
[1759790485458,2.417,4683.2,4683.1,3.17137197]
[1759790485752,2.8232,4683.7,4683.1,3.17137197]
[1759790485919,3.0506,4683.6,4683.2,2.13524693]
[1759790486254,3.0506,4683.6,4683.3,2.13521286]
[1759790487156,3.0506,4683.6,4683.1,2.73514598]
[1759790487448,2.1896,4683.7,4683.2,2.13529168]
[1759790487449,0.6336,4683.4,4683.2,2.13529168]
[1759790487654,2.416,4683.3,4683.2,2.13529168]
[1759790488328,2.416,4683.3,4683.2,0.27312742]
[1759790488921,2.416,4683.3,4683.2,2.84461062]
[1759790489851,2.1896,4683.7,4683.4,2.13519727]
[1759790490166,2.416,4683.6,4683.3,0.4362]
[1759790490321,2.416,4683.6,4683.5,2.13515533]
[1759790490521,0.1064,4684.5,4683.5,2.96330361]
[1759790490747,2.416,4684.4,4683.6,0.4362]
[1759790490951,0.6336,4684.3,4683.9,0.1064]
[1759790491154,0.6336,4684.1,4683.9,0.1064]
[1759790491450,3.0496,4684.0,4683.9,0.1064]
[1759790492554,3.0496,4684.0,4683.9,0.5426]
[1759790492772,3.0496,4684.0,4683.9,0.1064]
[1759790493421,0.002,4684.1,4683.9,0.5388]
[1759790493622,0.002,4684.1,4684.0,0.5388]
[1759790493830,0.002,4684.1,4684.0,0.80618276]
[1759790494052,2.417,4684.1,4684.0,0.80618276]
[1759790494269,0.002,4684.1,4684.0,0.80618276]
[1759790494651,2.417,4684.1,4684.0,0.5388]
[1759790495031,0.002,4684.1,4684.0,0.1064]
[1759790495232,2.417,4684.1,4684.0,0.1064]
[1759790496262,0.002,4684.1,4684.0,0.1064]
[1759790496461,2.417,4684.1,4684.0,0.1064]
[1759790497677,0.002,4684.1,4684.0,3.17958322]
[1759790499827,0.002,4684.1,4684.0,5.57958322]
[1759790500293,0.002,4684.1,4684.0,25.82893822]
[1759790500567,0.002,4684.1,4684.0,24.44766222]
[1759790501061,0.002,4684.1,4684.0,26.86166222]
[1759790501234,0.002,4684.1,4684.0,34.50639885]
[1759790501436,0.002,4684.1,4684.0,31.89157985]
[1759790501662,0.002,4684.1,4684.0,17.29047885]
[1759790502233,0.002,4684.1,4684.0,24.44456485]
[1759790503243,0.002,4684.1,4684.0,8.07897785]
[1759790503646,0.002,4684.1,4684.0,28.04943885]
[1759790503847,0.002,4684.1,4684.0,28.04695585]
[1759790504254,0.002,4684.1,4684.0,28.11878785]
[1759790504574,0.002,4684.1,4684.0,7.28552622]
[1759790505169,0.002,4684.1,4684.0,7.74062622]
[1759790505377,0.002,4684.1,4684.0,24.74595822]
[1759790505571,0.002,4684.1,4684.0,19.20650022]
[1759790505773,0.002,4684.1,4684.0,11.95705522]
[1759790506578,0.002,4684.1,4684.0,20.14072222]
[1759790506872,0.002,4684.1,4684.0,21.34208922]
[1759790507175,0.002,4684.1,4684.0,20.05108322]
[1759790507542,0.002,4684.1,4684.0,5.57958322]
[1759790507870,0.002,4684.1,4684.0,24.27743422]
[1759790508545,0.002,4684.1,4684.0,5.57958322]
[1759790508749,0.002,4684.1,4684.0,35.57958322]
[1759790510473,0.002,4684.1,4684.0,33.28604529]
[1759790510675,0.002,4684.1,4684.0,35.66497329]
[1759790510857,0.002,4684.1,4684.0,32.78944529]
[1759790511280,0.002,4684.1,4684.0,32.37549829]
[1759790511668,0.002,4684.1,4684.0,35.66597329]
[1759790512484,0.002,4684.1,4684.0,16.24872829]
[1759790512786,0.002,4684.1,4684.0,15.15237129]
[1759790513884,0.002,4684.1,4684.0,18.52047629]
[1759790514256,0.002,4684.1,4684.0,16.55359229]
[1759790514456,0.002,4684.1,4684.0,14.70706229]
[1759790514685,0.002,4684.1,4684.0,5.21087329]
[1759790514885,0.002,4684.1,4684.0,13.63631429]
[1759790515488,0.002,4684.1,4684.0,7.17716122]
[1759790515658,0.4392,4684.1,4684.0,4.64232741]
[1759790515983,0.4392,4684.1,4684.0,2.5074]
[1759790516184,0.4392,4684.1,4684.0,4.64232741]
[1759790516891,0.002,4684.1,4684.0,2.5074]
[1759790517062,0.4392,4684.1,4684.0,2.5074]
[1759790517264,0.4392,4684.1,4684.0,4.64232741]
[1759790518405,0.002,4684.1,4684.0,20.32013741]
[1759790518564,0.002,4684.1,4684.0,21.13029041]
[1759790518761,0.002,4684.1,4684.0,20.67519041]
[1759790519381,0.002,4684.1,4684.0,23.29241041]
[1759790519797,0.002,4684.1,4684.0,23.74751041]
[1759790520392,0.002,4684.1,4684.0,23.29241041]
[1759790520706,0.002,4684.1,4684.0,23.30923241]
[1759790521007,0.002,4684.1,4684.0,15.03087641]
[1759790521319,0.002,4684.1,4684.0,10.08908141]
[1759790521615,0.002,4684.1,4684.0,17.24136541]
[1759790522213,0.002,4684.1,4684.0,15.58561141]
[1759790522516,0.002,4684.1,4684.0,16.25588341]
[1759790523602,0.002,4684.1,4684.0,18.62531641]
[1759790523804,0.002,4684.1,4684.0,17.23031641]
[1759790523998,0.002,4684.1,4684.0,14.43788341]
[1759790524198,0.002,4684.1,4684.0,9.72283041]
[1759790524402,0.4446,4684.1,4684.0,2.5074]
[1759790524606,1.0782,4684.1,4684.0,0.1074]
[1759790525313,3.21308183,4684.1,4683.5,0.001]
[1759790525507,3.31948183,4684.1,4683.5,0.001]
[1759790525706,3.86491157,4684.1,4683.5,0.001]
[1759790525904,0.6336,4683.9,4683.5,0.001]
[1759790526211,0.6336,4683.6,4683.5,0.001]
[1759790526886,1.0762,4683.6,4683.5,0.001]
[1759790527523,3.74593221,4683.6,4683.5,0.001]
[1759790527683,3.21130974,4683.6,4683.5,0.001]
[1759790528378,1.0762,4683.6,4683.5,0.001]
[1759790529208,3.4892,4683.6,4683.5,0.001]
[1759790533792,0.6336,4683.8,4683.5,0.001]
[1759790533998,0.6336,4683.6,4683.5,0.001]
[1759790534411,1.0762,4683.6,4683.5,0.001]
[1759790535547,1.63861407,4683.6,4683.5,0.001]
[1759790536762,3.77372381,4683.6,4683.5,0.001]
[1759790539143,7.6008788,4683.6,4683.5,0.001]
[1759790539350,0.6336,4683.3,4683.1,0.01]
[1759790539534,9.1458788,4683.6,4683.1,0.01]
[1759790539535,12.16559497,4683.2,4683.1,0.01]
[1759790539852,10.30159497,4683.2,4683.1,0.01]
[1759790540259,12.70159497,4683.2,4683.1,0.01]
[1759790540715,12.90050972,4683.2,4683.1,0.01]
[1759790541441,12.70159497,4683.2,4683.1,0.01]
[1759790541748,15.11459497,4683.2,4683.1,0.01]
[1759790544527,8.87443998,4683.2,4683.1,0.01]
[1759790544844,11.28743998,4683.2,4683.1,0.01]
[1759790545552,10.65383998,4683.2,4683.1,0.01]
[1759790545762,2.285,4683.2,4683.1,0.01]
[1759790545956,4.5916,4683.2,4683.1,0.01]
[1759790546255,7.3604921,4683.2,4683.1,0.01]
[1759790546426,5.2252,4683.2,4683.1,0.01]
[1759790546939,7.3604921,4683.2,4683.1,0.01]
[1759790547136,4.9474921,4683.2,4683.1,0.01]
[1759790547338,7.3604921,4683.2,4683.1,0.01]
[1759790547740,7.3604921,4683.2,4683.1,0.011]
[1759790548061,10.09376547,4683.2,4683.1,0.011]
[1759790548858,6.26661048,4683.2,4683.1,0.011]
[1759790552633,1.27571838,4683.2,4683.1,0.011]
[1759790552964,5.1818921,4683.2,4683.1,0.011]
[1759790553128,5.6409921,4683.2,4683.1,0.011]
[1759790554264,5.84024792,4683.2,4683.1,0.011]
[1759790554461,5.38114792,4683.2,4683.1,0.011]
[1759790554634,5.6409921,4683.2,4683.1,0.011]
[1759790554836,6.80152787,4683.2,4683.1,0.011]
[1759790555660,6.34242787,4683.2,4683.1,0.011]
[1759790556256,3.92942787,4683.2,4683.1,0.011]
[1759790556666,5.1818921,4683.2,4683.1,0.011]
[1759790557048,2.7688921,4683.2,4683.1,0.011]
[1759790557248,5.1818921,4683.2,4683.1,0.011]
[1759790558162,5.2882921,4683.2,4683.1,0.011]
[1759790559860,2.413,4683.2,4683.1,0.1174]
[1759790560065,5.1818921,4683.2,4683.1,0.011]
[1759790563883,2.7688921,4683.2,4683.1,0.011]
[1759790564088,5.1808921,4683.2,4683.1,0.011]
[1759790566092,2.7688921,4683.2,4683.1,0.011]
[1759790566297,5.1808921,4683.2,4683.1,0.011]
[1759790566659,2.7688921,4683.2,4683.1,0.011]
[1759790566858,5.1808921,4683.2,4683.1,0.011]
[1759790569189,5.6535921,4683.2,4683.1,0.011]
[1759790569387,6.38540253,4683.2,4683.1,0.011]
[1759790570101,5.91270253,4683.2,4683.1,0.011]
[1759790570611,6.38540253,4683.2,4683.1,0.011]
[1759790571179,5.91270253,4683.2,4683.1,0.011]
[1759790572305,6.38540253,4683.2,4683.1,0.011]
[1759790572498,6.01910253,4683.2,4683.1,0.011]
[1759790574020,3.88381043,4683.2,4683.1,0.011]
[1759790574322,0.4747,4683.5,4683.1,0.4488]
[1759790574323,0.002,4683.5,4683.1,0.4488]
[1759790574527,0.002,4683.5,4683.4,2.24160092]
[1759790574685,2.414,4683.5,4683.4,2.24160092]
[1759790575022,2.414,4683.5,4683.4,2.67940092]
[1759790575331,2.414,4683.5,4683.4,3.16207429]
[1759790575613,0.002,4683.5,4683.4,3.16207429]
[1759790575821,2.414,4683.5,4683.4,3.16207429]
[1759790576681,0.002,4683.5,4683.4,3.16207429]
[1759790576884,2.414,4683.5,4683.4,3.16207429]
[1759790578012,0.002,4683.5,4683.4,3.16207429]
[1759790582616,0.002,4683.5,4683.4,2.72427429]
[1759790582783,0.002,4683.5,4683.4,0.58907337]
[1759790583120,0.002,4683.5,4683.4,0.1064]
[1759790583322,2.414,4683.5,4683.4,0.1064]
[1759790586721,4.5926,4683.5,4683.4,0.1064]
[1759790590828,4.5926,4683.5,4683.4,2.24160092]
[1759790591927,2.1806,4683.5,4683.1,0.011]
[1759790592100,3.0446,4683.4,4683.1,0.011]
[1759790592300,2.411,4683.3,4683.2,2.13524665]
[1759790592712,2.1806,4683.5,4683.3,2.13524043]
[1759790592901,2.1806,4683.5,4683.3,0.47272023]
[1759790593100,2.411,4683.4,4683.3,2.60796674]
[1759790593401,2.411,4683.4,4683.3,0.47272023]
[1759790593924,2.411,4683.4,4683.2,2.13527563]
[1759790594643,2.411,4683.4,4683.1,0.011]
[1759790594644,2.411,4683.4,4683.1,2.14632755]
[1759790594955,2.7688921,4683.2,4683.1,0.011]
[1759790595452,3.2275921,4683.2,4683.1,0.011]
[1759790596649,5.6385921,4683.2,4683.1,0.011]
[1759790599856,3.5033,4683.2,4683.1,0.011]
[1759790600062,6.41616581,4683.2,4683.1,0.011]
[1759790600260,3.82217371,4683.2,4683.1,0.011]
[1759790600556,3.5033,4683.2,4683.1,0.011]
[1759790601124,3.0446,4683.2,4683.1,0.011]
[1759790603231,0.6336,4683.2,4683.1,0.011]
[1759790603571,3.0446,4683.2,4683.1,0.011]
[1759790603865,0.6336,4683.2,4683.1,0.011]
[1759790604065,3.0446,4683.2,4683.1,0.011]
[1759790608060,0.6336,4683.2,4683.1,0.011]
[1759790608267,3.0446,4683.2,4683.1,0.011]
[1759790610067,0.6336,4683.2,4683.1,0.011]
[1759790610255,3.5033,4683.2,4683.1,0.011]
[1759790610454,3.85383,4683.2,4683.1,0.011]
[1759790610865,5.9891221,4683.2,4683.1,0.011]
[1759790611568,3.85383,4683.2,4683.1,0.011]
[1759790611768,5.9891221,4683.2,4683.1,0.011]
[1759790612940,3.85383,4683.2,4683.1,0.011]